Workbook

Sheet Feuil1
A1: TRAITE
A2: REGLE
A3: HT
A4: %
A5: TVA
A6: TTC | C6: ENTREPRISES | E6: REMARQUES | G6: MARCHE | H6: AV.1 | I6: AV.2 | J6: AV.3 | K6: AV.4 | L6: AV.5 | M6: TOTAL | P6: REMARQUES | R6: ACC | S6: FA.1 | T6: FA.2 | U6: FA.3 | V6: FA.4 | W6: FA.5 | X6: FA.6 | Y6: FA.7 | Z6: FA.8 | AA6: FA.9 | AB6: FA.10 | AC6: DÉJÀ REGLE TTC | AD6: RETENU DE GARANTI | AE6: RESTE A REGLE TTC
C8: ETUDES
C9: ENTREPRISES | E9: REMARQUES | G9: MARCHE | H9: AV.1 | I9: AV.2 | J9: AV.3 | K9: AV.4 | L9: AV.5 | M9: TOTAL | P9: REMARQUES | R9: ACC | S9: FA.1 | T9: FA.2 | U9: FA.3 | V9: FA.4 | W9: FA.5 | X9: FA.6 | Y9: FA.7 | Z9: FA.8 | AA9: FA.9 | AB9: FA.10 | AC9: DÉJÀ REGLE TTC | AD9: RETENU DE GARANTI | AE9: RESTE A REGLE TTC
C11: G | F11: HT | G11: 2780 | M11: =SUM(G11:L11) -> 2780 | N11: HT | O11: =C11 -> G | Q11: Montant | S11: =M14 -> 3336 | AC11: =SUMPRODUCT(R11:AB11*(R13:AB13<>"")) -> 3336 | AD11: % | AE11: =M14-AC11-AD13 -> 0
C12: Plan de topographie & bornage | F12: % | G12: 0.2 | N12: % | Q12: Remarques
F13: TVA | G13: =G11*G12 -> 556 | M13: =SUM(G13:L13) -> 556 | N13: TVA | Q13: Règlement | S13: 2015-08-10
F14: TTC | G14: =G11+G13 -> 3336 | M14: =SUM(G14:L14) -> 3336 | N14: TTC
C16: I | F16: HT | G16: 4800 | M16: =SUM(G16:L16) -> 4800 | N16: HT | O16: =C16 -> I | Q16: Montant | S16: =(M19*30%) -> 1728 | AC16: =SUMPRODUCT(R16:AB16*(R18:AB18<>"")) -> 1728 | AD16: % | AE16: =M19-AC16-AD18 -> 4032
C17: Bureau étude structure & charpente | F17: % | G17: 0.2 | N17: % | Q17: Remarques | S17: 0.3
F18: TVA | G18: =G16*G17 -> 960 | M18: =SUM(G18:L18) -> 960 | N18: TVA | Q18: Règlement | S18: 10.08.2015
F19: TTC | G19: =G16+G18 -> 5760 | M19: =SUM(G19:L19) -> 5760 | N19: TTC | S19: 0000802
C21: E | F21: HT | G21: 2900 | M21: =SUM(G21:L21) -> 2900 | N21: HT | O21: =C21 -> E | Q21: Montant | R21: =M24*R22 -> 1044 | AC21: =SUMPRODUCT(R21:AB21*(R23:AB23<>"")) -> 1044 | AD21: % | AE21: =M24-AC21-AD23 -> 2436
C22: Etude de sol | F22: % | G22: 0.2 | N22: % | Q22: Remarques | R22: 0.3
F23: TVA | G23: =G21*G22 -> 580 | M23: =SUM(G23:L23) -> 580 | N23: TVA | Q23: Règlement | R23: 25.08.2015
F24: TTC | G24: =G21+G23 -> 3480 | M24: =SUM(G24:L24) -> 3480 | N24: TTC | R24: SG.0000803
C26: M | F26: HT | G26: 700 | M26: =SUM(G26:L26) -> 700 | N26: HT | O26: =C26 -> M | Q26: Montant | R26: 200 | AC26: =SUMPRODUCT(R26:AB26*(R28:AB28<>"")) -> 200 | AD26: % | AE26: =M29-AC26-AD28 -> 640
C27: Etude thermique | F27: % | G27: 0.2 | N27: % | Q27: Remarques
F28: TVA | G28: =G26*G27 -> 140 | M28: =SUM(G28:L28) -> 140 | N28: TVA | Q28: Règlement | R28: 18.11.2015
F29: TTC | G29: =G26+G28 -> 840 | M29: =SUM(G29:L29) -> 840 | N29: TTC | R29: 0000803
C31: A | F31: HT | G31: 1370 | M31: =SUM(G31:L31) -> 1370 | N31: HT | O31: =C31 -> A | Q31: Montant | R31: 0 | AC31: =SUMPRODUCT(R31:AB31*(R33:AB33<>"")) -> 0 | AD31: % | AE31: =M34-AC31-AD33 -> 1644
C32: Diagnostique amiante | F32: % | G32: 0.2 | N32: % | Q32: Remarques
F33: TVA | G33: =G31*G32 -> 274 | M33: =SUM(G33:L33) -> 274 | N33: TVA | Q33: Règlement
F34: TTC | G34: =G31+G33 -> 1644 | M34: =SUM(G34:L34) -> 1644 | N34: TTC
C36: P | F36: HT | G36: 0 | M36: =SUM(G36:L36) -> 0 | N36: HT | O36: =C36 -> P | Q36: Montant | R36: 0 | AC36: =SUMPRODUCT(R36:AB36*(R38:AB38<>"")) -> 0 | AD36: % | AE36: =M39-AC36-AD38 -> 0
C37: Economiste de la construction | E37: 2% HT du Total Travaux HT | F37: % | G37: 0.2 | N37: % | Q37: Remarques
F38: TVA | G38: =G36*G37 -> 0 | M38: =SUM(G38:L38) -> 0 | N38: TVA | Q38: Règlement
F39: TTC | G39: =G36+G38 -> 0 | M39: =SUM(G39:L39) -> 0 | N39: TTC
C43: RECAPITULATIF ETUDE
G44: HT | H44: TVA | I44: TTC
E46: MARCHES | G46: =SUM(G11,G16,G21,G26,G31,G36) -> 12550 | H46: =SUM(G13,G18,G23,G28,G33,G38) -> 2510 | I46: =G46+H46 -> 15060
E47: AVENANTS | G47: =SUM(H11:L11,H16:L16,H21:L21,H26:L26,H31:L31,H36:L36) -> 0 | H47: =SUM(H13:L13,H18:L18,H23:L23,H28:L28,H33:L33,H38:L38) -> 0 | I47: =G47+H47 -> 0
E48: MARCHES + AVENANTS | G48: =G46+G47 -> 12550 | H48: =H46+H47 -> 2510 | I48: =I46+I47 -> 15060
E49: DÉJÀ REGLE | I49: =SUM(AC11:AC41) -> 6308
E50: RESTE A REGLER | I50: =SUM(AE11:AE41) -> 8752
C77: TRAVAUX
C78: ENTREPRISES | E78: REMARQUES | G78: MT | H78: AV.1 | I78: AV.2 | J78: AV.3 | K78: AV.4 | L78: AV.5 | M78: TOTAL TRAVAUX | P78: REMARQUES | R78: ACC | S78: FA.1 | T78: FA.2 | U78: FA.3 | V78: FA.4 | W78: FA.5 | X78: FA.6 | Y78: FA.7 | Z78: FA.8 | AA78: FA.9 | AB78: FA.10 | AC78: DÉJÀ REGLE | AE78: RESTE A REGLE
C80: LOT 1 - | F80: HT | G80: 0 | M80: =SUM(G80:L80) -> 0 | N80: HT | O80: =C80 -> LOT 1 - | Q80: Montant | AC80: =SOMME_SI_COULEUR(R80:AB80,A2) -> 0 | AE80: =M83-AC80 -> 0
F81: % | G81: 0 | N81: % | Q81: Remarques
F82: TVA | G82: =G80*G81 -> 0 | M82: =SUM(G82:L82) -> 0 | N82: TVA | Q82: Règlement
F83: TTC | G83: =G80+G82 -> 0 | M83: =SUM(G83:L83) -> 0 | N83: TTC
C85: LOT 2 - | F85: HT | G85: 0 | M85: =SUM(G85:L85) -> 0 | N85: HT | O85: =C85 -> LOT 2 - | Q85: Montant | AC85: =SOMME_SI_COULEUR(R85:AB85,A6) -> 0 | AE85: =M88-AC85 -> 0
F86: % | G86: 0 | N86: % | Q86: Remarques
F87: TVA | G87: =G85*G86 -> 0 | M87: =SUM(G87:L87) -> 0 | N87: TVA | Q87: Règlement
F88: TTC | G88: =G85+G87 -> 0 | M88: =SUM(G88:L88) -> 0 | N88: TTC
C90: LOT 3 - | F90: HT | G90: 0 | M90: =SUM(G90:L90) -> 0 | N90: HT | O90: =C90 -> LOT 3 - | Q90: Montant | AC90: =SOMME_SI_COULEUR(R90:AB90,A20) -> 0 | AE90: =M93-AC90 -> 0
F91: % | G91: 0 | N91: % | Q91: Remarques
F92: TVA | G92: =G90*G91 -> 0 | M92: =SUM(G92:L92) -> 0 | N92: TVA | Q92: Règlement
F93: TTC | G93: =G90+G92 -> 0 | M93: =SUM(G93:L93) -> 0 | N93: TTC
C97: RECAPITULATIF TRAVAUX
G98: HT | H98: TVA | I98: TTC
E100: MARCHES | G100: =cumul_couleur(G79:G95,A3) -> 0 | H100: =cumul_couleur(G79:G95,A5) -> 0 | I100: =cumul_couleur(G79:G95,A6) -> 0
E101: AVENANTS | G101: =cumul_couleur(H80:L95,A3) -> 0 | H101: =cumul_couleur(H79:L95,A5) -> 0 | I101: =cumul_couleur(H79:L95,A24) -> 0
E102: MARCHES + AVENANTS | G102: =G100+G101 -> 0 | H102: =H100+H101 -> 0 | I102: =I100+I101 -> 0
E103: DÉJÀ REGLE | I103: =SUM(AC79:AC95) -> 0
E104: RESTE A REGLER | I104: =SUM(AE79:AE95) -> 0

Sheet Feuil2
B3: LISTE DE CHOIX

Sheet Feuil3
